Workbook

Sheet STARTA
B1: OM DEN HÄR MALLEN
B2: Spåra startkostnader, intäkter och kostnader för webbplatsen med hjälp av det här budgetverktyget för webbplatser.
B3: Ange information i tabellerna för att beräkna summorna och utvärderingsuppgifterna automatiskt.
B4: Obs!
B5: Ytterligare anvisningar finns i kolumn A i kalkylbladet BUDGETVERKTYG. Den här texten har avsiktligt dolts. Om du vill ta bort texten markerar du kolumn A och väljer sedan TA BORT. Om du vill visa texten markerar du kolumn A och ändrar sedan teckenfärg.
B6: Om du vill läsa mer om tabeller i kalkylbladet trycker du på SKIFT och sedan på F10 i en tabell, väljer alternativet TABELL och väljer sedan ALTERNATIVTEXT.

Sheet BUDGETVERKTYG
B2: Quadrex Hardware
B3: BUDGETVERKTYG FÖR WEBBPLATS
B4: 2022-12-01
B6: Företagsinformation | C6: Procentsats
B7: Avkastningskrav | C7: 10%
B8: Skattesats | C8: 30%
B10: Startkostnader för webbplatsen | C10: År
B11: Maskinvara (t.ex. servrar) | C11: 25,000.00 kr
B12: Programvara (t.ex. katalogprogramvara för e-handel) | C12: 15,000.00 kr
B13: Utveckling (t.ex. design och utveckling för webbplatsen från tredje part) | C13: 150,000.00 kr
B14: Totala startkostnader | C14: =SUBTOTAL(109,Startkostnader[År]) -> 190,000.00 kr
B16: Intäkter från webbplats | C16: År 1 | D16: År 2 | E16: År 3
B17: Direktförsäljning | C17: 15,000.00 kr | D17: 50,000.00 kr | E17: 75,000.00 kr
B18: Merförsäljning tack vare bättre kampanjer/effektivare säljare | C18: 25,000.00 kr | D18: 25,000.00 kr | E18: 25,000.00 kr
B19: Merförsäljning tack vare mer engagemang med partners | C19: 25,000.00 kr | D19: 25,000.00 kr | E19: 25,000.00 kr
B20: Minskade resekostnader | C20: 25,000.00 kr | D20: 25,000.00 kr | E20: 25,000.00 kr
B21: Minskade kostnader för kundtjänst | C21: 50,000.00 kr | D21: 50,000.00 kr | E21: 50,000.00 kr
B22: Totala förmåner | C22: =SUBTOTAL(109,Intäkter[År 1]) -> 140,000.00 kr | D22: =SUBTOTAL(109,Intäkter[År 2]) -> 175,000.00 kr | E22: =SUBTOTAL(109,Intäkter[År 3]) -> 200,000.00 kr
B24: Kostnader (exklusive inledande kapitalinvesteringar) | C24: ÅR 1 | D24: ÅR 2 | E24: ÅR 3
B25: Försäljningskostnader | C25: 7,500.00 kr | D25: 25,000.00 kr | E25: 37,500.00 kr
B26: Underhåll | C26: 15,000.00 kr | D26: 15,000.00 kr | E26: 15,000.00 kr
B27: Projektledning, kundsupport | C27: 35,000.00 kr | D27: 35,000.00 kr | E27: 35,000.00 kr
B28: Marknadsföring online, sökmotorregistrering | C28: 10,000.00 kr | D28: 10,000.00 kr | E28: 10,000.00 kr
B29: Avskrivning av investeringar i anläggningstillgångar (beräkningen använder en treårsperiod) | C29: =Startkostnader[[#Totals],[År]]/3 -> 63,333.33 kr | D29: =Startkostnader[[#Totals],[År]]/3 -> 63,333.33 kr | E29: =Startkostnader[[#Totals],[År]]/3 -> 63,333.33 kr
B30: Totala kostnader | C30: =SUBTOTAL(109,Kostnader[ÅR 1]) -> 130,833.33 kr | D30: =SUBTOTAL(109,Kostnader[ÅR 2]) -> 148,333.33 kr | E30: =SUBTOTAL(109,Kostnader[ÅR 3]) -> 160,833.33 kr
B32: Totalsummor | D32: År 1 | E32: År 2 | F32: År 3
B33: Nettoförmåner (kostnader) | D33: =Intäkter[[#Totals],[År 1]]-Kostnader[[#Totals],[ÅR 1]] -> 9,166.67 kr | E33: =Intäkter[[#Totals],[År 2]]-Kostnader[[#Totals],[ÅR 2]] -> 26,666.67 kr | F33: =Intäkter[[#Totals],[År 3]]-Kostnader[[#Totals],[ÅR 3]] -> 39,166.67 kr
B34: Skatt | D34: =D33*Skattesats -> 2,750.00 kr | E34: =E33*Skattesats -> 8,000.00 kr | F34: =F33*Skattesats -> 11,750.00 kr
B35: Värde efter skatt | D35: =D33-D34 -> 6,416.67 kr | E35: 18,666.67 kr | F35: 27,416.67 kr
B36: Avskrivning som lagts tillbaka | D36: =C29 -> 63,333.33 kr | E36: =D29 -> 63,333.33 kr | F36: =E29 -> 63,333.33 kr
B37: Kassaflöde | C37: =-Startkostnader[[#Totals],[År]] -> -190,000.00 kr | D37: =D35+D36 -> 69,750.00 kr | E37: 82,000.00 kr | F37: 90,750.00 kr
B38: Ackumulerat kassaflöde | C38: =C37 -> -190,000.00 kr | D38: =C38+D37 -> -120,250.00 kr | E38: -38,250.00 kr | F38: 52,500.00 kr
B40: Utvärderingsuppgifter | C40: Värden
B41: Nettonuvärde (NNV) | C41: =C37+(NPV(Räntabilitet,D37:F37)) -> 9,359.50 kr
B42: Internränta | C42: =IRR(C37:F37) -> 12.66%
B43: Återbetalningstid (i antal år) | C43: =IF(F38<=0,"Överskrider 3 år",IF(E38<=0,(F37-F38)/F37+2,IF(D38<=0,(E37-E38)/E37+1,IF(C38<=0,(D37-D38)/D37,"Saknas")))) -> 2.42
